bitfinex-derivatives/quotes_BTCF0:USTF0_20250812
["timestamp","ask_amount","ask_price","bid_price","bid_amount"]
[1755016622741,0.92139168,119640.0,119630.0,0.79685899]
[1755016623842,0.94393168,119640.0,119630.0,0.79685899]
[1755016624835,1.02750868,119640.0,119630.0,0.79685899]
[1755016625439,0.94393168,119640.0,119630.0,0.79685899]
[1755016626648,0.94393168,119640.0,119630.0,0.70975037]
[1755016631355,1.02750868,119640.0,119630.0,0.70975037]
[1755016631958,0.96647168,119640.0,119630.0,0.70975037]
[1755016632153,1.05004868,119640.0,119630.0,0.70975037]
[1755016632352,0.94393168,119640.0,119630.0,0.70975037]
[1755016633458,1.02750868,119640.0,119630.0,0.70975037]
[1755016633957,0.87349168,119640.0,119630.0,0.70975037]
[1755016634142,0.07109168,119640.0,119630.0,1.21703674]
[1755016634348,0.07109168,119640.0,119630.0,0.71803559]
[1755016635655,0.07109168,119640.0,119630.0,2.19489796]
[1755016636955,0.07109168,119640.0,119630.0,1.68761159]
[1755016639161,0.07109168,119640.0,119630.0,1.18032522]
[1755016639363,0.07109168,119640.0,119630.0,1.68761159]
[1755016640663,0.07109168,119640.0,119630.0,1.52043559]
[1755016640861,0.07109168,119640.0,119630.0,1.68761159]
[1755016641765,0.10387168,119640.0,119630.0,1.51199037]
[1755016642263,0.07109168,119640.0,119630.0,1.51199037]
[1755016643654,0.14264168,119640.0,119630.0,1.51199037]
[1755016644660,0.14264168,119640.0,119630.0,1.52038184]
[1755016645054,0.14264168,119640.0,119630.0,1.51199037]
[1755016645253,0.12017168,119640.0,119630.0,1.51199037]
[1755016645456,0.22621868,119640.0,119630.0,0.70975037]
[1755016645649,0.24875868,119640.0,119630.0,0.70975037]
[1755016649768,0.16518168,119640.0,119630.0,0.70975037]
[1755016649966,0.07109168,119640.0,119630.0,0.70975037]
[1755016650873,0.07109168,119640.0,119630.0,1.21703674]
[1755016651166,0.07109168,119640.0,119630.0,0.70975037]
[1755016651469,0.07109168,119640.0,119630.0,1.51167037]
[1755016654465,0.07109168,119640.0,119630.0,1.004384]
[1755016654666,0.07109168,119640.0,119630.0,1.51167037]
[1755016654868,0.07109168,119640.0,119630.0,1.004384]
[1755016655066,0.07109168,119640.0,119630.0,1.51167037]
[1755016656074,0.07109168,119640.0,119630.0,2.00895674]
[1755016658166,0.07109168,119640.0,119630.0,1.50167037]
[1755016662676,0.07109168,119640.0,119630.0,2.00895674]
[1755016662877,0.05609168,119640.0,119630.0,2.00895674]
[1755016663174,0.80236,119660.0,119650.0,0.2022999]
[1755016663473,0.2159989,119670.0,119660.0,0.11873]
[1755016663474,0.2632689,119670.0,119660.0,0.11873]
[1755016663674,0.09615,119670.0,119660.0,0.70957927]
[1755016664075,0.12063,119670.0,119660.0,0.70957927]
[1755016664466,0.8993801,119680.0,119660.0,0.87670037]
[1755016664662,0.92223,119680.0,119670.0,0.70957227]
[1755016665067,0.89775,119680.0,119670.0,0.70957227]
[1755016665267,0.90640682,119680.0,119670.0,0.70957227]
[1755016665468,0.89775,119680.0,119670.0,0.70957227]
[1755016666378,0.90275,119680.0,119670.0,0.2022859]
[1755016666571,0.90675,119680.0,119670.0,0.70957227]
[1755016666770,0.97410288,119680.0,119670.0,0.70957227]
[1755016667668,0.97010288,119680.0,119670.0,0.70957227]
[1755016667873,0.97410288,119680.0,119670.0,0.70957227]
[1755016668779,0.28053218,119680.0,119670.0,0.70957227]
[1755016670484,0.19698288,119680.0,119670.0,0.70957227]
[1755016671584,0.28053218,119680.0,119670.0,0.70957227]
[1755016673177,0.19698288,119680.0,119670.0,0.70957227]
[1755016673382,0.28053218,119680.0,119670.0,0.70957227]
[1755016674877,0.0835562,119670.0,119660.0,0.250684]
[1755016675078,0.2041932,119660.0,119650.0,0.4698694]
[1755016675278,0.2041932,119660.0,119650.0,0.1065602]
[1755016675279,0.71147957,119660.0,119650.0,0.1065602]
[1755016676491,0.71547957,119660.0,119650.0,0.1065602]
[1755016676791,0.2081932,119660.0,119650.0,0.1065602]
[1755016676981,0.71547957,119660.0,119650.0,0.0835702]
[1755016677987,0.2042003,119650.0,119640.0,0.3825427]
[1755016678194,1.51256667,119650.0,119640.0,0.1318138]
[1755016678385,1.51256667,119650.0,119630.0,0.2858926]
[1755016678386,0.2042072,119640.0,119630.0,0.2858926]
[1755016678590,0.71149357,119640.0,119630.0,0.0835803]
[1755016679496,0.88296,119640.0,119630.0,0.69576667]
[1755016679789,0.87673,119640.0,119630.0,0.70959667]
[1755016680190,0.8635,119640.0,119630.0,0.70959667]
[1755016680393,0.002,119640.0,119630.0,0.70959667]
[1755016680598,0.08392,119640.0,119630.0,0.70959667]
[1755016680786,0.2062072,119640.0,119630.0,0.70959667]
[1755016681096,0.2148686,119640.0,119630.0,0.1884803]
[1755016681290,0.2148686,119640.0,119630.0,0.1318203]
[1755016681497,0.72215497,119640.0,119630.0,0.0835803]
[1755016681696,0.2148686,119640.0,119630.0,0.0835803]
[1755016682196,0.2148686,119640.0,119630.0,0.1065703]
[1755016686588,0.2148686,119640.0,119630.0,0.1402203]
[1755016688797,1.0602497,119640.0,119630.0,0.1071842]
[1755016689187,0.1768142,119630.0,119620.0,0.0835905]
[1755016689388,1.0026742,119630.0,119620.0,0.0835905]
[1755016689593,1.0026742,119630.0,119620.0,0.1071905]
[1755016689899,1.0026742,119630.0,119620.0,0.1408405]
[1755016690487,1.0036742,119630.0,119620.0,0.1408405]
[1755016691196,1.0036742,119630.0,119620.0,0.1803405]
[1755016691387,0.80188,119630.0,119620.0,0.79645]
[1755016691593,0.83557,119630.0,119620.0,0.79645]
[1755016692597,0.80184,119630.0,119620.0,0.79645]
[1755016692901,0.001,119630.0,119620.0,0.79645]
[1755016693810,0.001,119630.0,119620.0,0.81368259]
[1755016695007,0.001,119630.0,119620.0,1.61444259]
[1755016695304,0.9180143,119660.0,119650.0,0.2018002]
[1755016695506,0.83445,119660.0,119650.0,0.7964297]
[1755016696205,0.9319332,119660.0,119650.0,0.7964297]
[1755016696401,0.9349332,119660.0,119650.0,0.7964297]
[1755016696902,1.0095332,119660.0,119650.0,0.2018002]
[1755016697300,0.1375932,119660.0,119650.0,0.21860557]
[1755016697508,0.80768,119660.0,119650.0,0.81323507]
[1755016697706,0.9858832,119660.0,119650.0,0.81323507]
[1755016698907,1.0094532,119660.0,119650.0,0.21860557]
[1755016699305,1.0094532,119660.0,119650.0,0.14905557]
[1755016699504,1.0094532,119660.0,119650.0,0.12397557]
[1755016699808,1.0094532,119660.0,119650.0,0.10037557]
[1755016700199,1.0094532,119660.0,119650.0,0.14905557]
[1755016700402,1.0094532,119660.0,119650.0,0.21860557]
[1755016703901,1.0094532,119660.0,119650.0,0.16347557]
[1755016704101,1.0094532,119660.0,119650.0,0.12397557]
[1755016704302,1.0094532,119660.0,119650.0,0.20418557]
[1755016704502,1.0094532,119660.0,119650.0,0.21860557]
[1755016704710,1.0094532,119660.0,119650.0,0.72580302]
[1755016706412,1.0094532,119660.0,119650.0,0.21860557]
[1755016706613,1.0094532,119660.0,119650.0,0.72580302]
[1755016708304,1.0094532,119660.0,119650.0,0.12397557]
[1755016709007,1.0094532,119660.0,119650.0,0.04040537]
[1755016709710,1.0094532,119660.0,119650.0,0.12397557]
[1755016709913,1.0094532,119660.0,119650.0,0.04040537]
[1755016710209,0.2017872,119640.0,119630.0,0.1537421]
[1755016710399,1.0019072,119640.0,119630.0,0.2018121]
[1755016710900,1.0019072,119640.0,119630.0,0.70900955]
[1755016711616,1.0029072,119640.0,119630.0,0.2018121]
[1755016711913,1.0039072,119640.0,119630.0,0.70900955]
[1755016712309,1.0039072,119640.0,119630.0,0.2018121]
[1755016712515,1.0039072,119640.0,119630.0,0.04761]
[1755016712812,1.0039072,119640.0,119630.0,0.02253]
[1755016713716,1.0039072,119640.0,119620.0,0.80645744]
[1755016713717,0.2031142,119630.0,119620.0,0.80645744]
[1755016714904,0.2031142,119630.0,119620.0,0.29925999]
[1755016715308,0.2031142,119630.0,119620.0,0.80645744]
[1755016715823,0.11953,119630.0,119620.0,0.80645744]
[1755016716111,0.09486,119630.0,119620.0,0.80645744]
[1755016716409,0.2031142,119630.0,119620.0,0.2820274]
[1755016716716,0.2031142,119630.0,119620.0,0.78922485]
[1755016717309,0.1784442,119630.0,119620.0,0.2820274]
[1755016717510,0.09486,119630.0,119620.0,0.78922485]
[1755016717706,0.1784442,119630.0,119620.0,0.78922485]
[1755016718216,0.1784442,119630.0,119620.0,0.2820274]
[1755016718419,0.1784442,119630.0,119620.0,0.78922485]
[1755016718605,0.09486,119630.0,119620.0,0.78922485]
[1755016719009,0.1784442,119630.0,119620.0,0.78922485]
[1755016719519,0.1784442,119630.0,119620.0,0.2820274]
[1755016719819,0.1784442,119630.0,119620.0,0.78922485]
[1755016720614,0.2031142,119630.0,119620.0,0.78922485]
[1755016721521,0.2031142,119630.0,119620.0,0.2820274]
[1755016721724,0.2031142,119630.0,119620.0,0.78922485]
[1755016722223,0.2031142,119630.0,119620.0,0.2820274]
[1755016722415,0.2031142,119630.0,119620.0,0.78922485]
[1755016722816,0.2031142,119630.0,119620.0,0.1528412]
[1755016723116,0.2031142,119630.0,119620.0,0.1984412]
[1755016725121,0.2031142,119630.0,119620.0,0.70563865]
[1755016725419,0.2031142,119630.0,119620.0,0.1984412]
[1755016725613,0.2031142,119630.0,119620.0,0.70563865]
[1755016726418,0.2031142,119630.0,119620.0,0.1984412]
[1755016728115,0.2031142,119630.0,119620.0,0.70563865]
[1755016728311,0.2031142,119630.0,119620.0,0.1984412]
[1755016729124,0.2031142,119630.0,119620.0,0.70563865]
[1755016730418,0.2031142,119630.0,119620.0,0.1984412]
[1755016730628,0.2031142,119630.0,119620.0,0.70563865]
[1755016734323,0.2031142,119630.0,119620.0,0.65210865]
[1755016734516,0.2031142,119630.0,119620.0,0.1083412]
[1755016734721,0.71176705,119630.0,119620.0,0.1984412]
[1755016735322,0.2045696,119630.0,119620.0,0.1984412]
[1755016735514,0.71176705,119630.0,119620.0,0.1984412]
[1755016735719,0.1317511,119620.0,119610.0,0.334084]
[1755016736029,1.13113755,119620.0,119610.0,0.87284145]
[1755016736225,1.13113755,119620.0,119610.0,0.365644]
[1755016736426,1.13113755,119620.0,119610.0,0.87284145]
[1755016736627,1.01200755,119620.0,119610.0,0.87284145]
[1755016736826,0.92841645,119620.0,119610.0,0.87284145]
[1755016737219,0.92841645,119620.0,119610.0,0.87384145]
[1755016738628,0.92841645,119620.0,119610.0,0.87584145]
[1755016740027,0.92805645,119620.0,119610.0,0.87584145]
[1755016740631,0.92821645,119620.0,119610.0,0.87584145]
[1755016743129,0.06845645,119620.0,119610.0,0.87584145]
[1755016743321,0.87746702,119630.0,119620.0,0.0995411]
[1755016743530,0.01854702,119630.0,119620.0,0.70926855]
[1755016745928,0.01854702,119630.0,119620.0,0.2020711]
[1755016746236,0.01854702,119630.0,119620.0,0.70926855]
[1755016747633,0.87550702,119630.0,119620.0,0.70926855]
[1755016749632,0.01827026,119650.0,119640.0,0.1316172]
[1755016749938,0.92382,119650.0,119640.0,1.2164521]
[1755016750137,0.85432,119650.0,119640.0,1.2164521]
[1755016750638,0.88832,119650.0,119640.0,1.2164521]
[1755016750835,0.89032,119650.0,119640.0,1.2164521]
[1755016751238,0.89232,119650.0,119640.0,0.70925465]
[1755016752632,0.95253,119650.0,119640.0,0.2020572]
[1755016752838,0.95253,119650.0,119640.0,0.70925465]
[1755016755641,0.95253,119650.0,119640.0,0.2020572]
[1755016755943,0.95253,119650.0,119640.0,0.70925465]
[1755016759647,1.0361002,119650.0,119640.0,0.70925465]
[1755016760038,1.0607202,119650.0,119640.0,0.70925465]
[1755016762143,0.97715,119650.0,119640.0,0.70925465]
[1755016762635,1.0607202,119650.0,119640.0,0.70925465]
[1755016762837,1.0607202,119650.0,119640.0,0.2020572]
[1755016763038,1.0607202,119650.0,119640.0,0.70925465]
[1755016766542,0.97715,119650.0,119640.0,0.70925465]
[1755016767140,1.0607201,119650.0,119640.0,0.70925465]
[1755016768246,0.97715,119650.0,119640.0,0.70925465]
[1755016768450,1.0607202,119650.0,119640.0,0.70925465]
[1755016770250,1.0607202,119650.0,119640.0,0.2020572]
[1755016770449,1.0607202,119650.0,119640.0,0.70925465]
[1755016772145,0.85832,119650.0,119640.0,0.70925465]
[1755016772451,0.95253,119650.0,119640.0,0.70925465]
[1755016773555,1.0361002,119650.0,119640.0,0.70925465]
[1755016773755,1.0361002,119650.0,119640.0,0.2020572]
[1755016774050,1.0361002,119650.0,119640.0,0.70925465]
[1755016774251,0.95253,119650.0,119640.0,0.70925465]
[1755016774844,0.004,119650.0,119640.0,1.2164521]
[1755016775046,0.84436,119650.0,119640.0,1.2164521]
[1755016775248,0.84416,119650.0,119640.0,1.2164521]
[1755016776254,0.84416,119650.0,119640.0,0.2020572]
[1755016776445,0.84416,119650.0,119640.0,1.2164521]
[1755016776645,0.004,119650.0,119640.0,1.2164521]
[1755016777753,0.004,119650.0,119640.0,1.2248228]
[1755016778351,0.004,119650.0,119640.0,0.2020572]
[1755016778554,0.004,119650.0,119640.0,1.2164521]
[1755016779452,0.0386,119650.0,119640.0,1.2164521]
[1755016780258,0.004,119650.0,119640.0,1.2164521]
[1755016781061,0.84136,119650.0,119640.0,1.2164521]
[1755016781249,0.004,119650.0,119640.0,1.2164521]
[1755016783658,0.004,119650.0,119640.0,0.70925465]
[1755016783859,0.06141,119650.0,119640.0,0.70925465]
[1755016784252,0.06141,119650.0,119640.0,0.2020572]
[1755016784452,0.06141,119650.0,119640.0,0.70925465]
[1755016785866,0.004,119650.0,119640.0,1.2164521]
[1755016787266,0.1103802,119650.0,119640.0,0.2020572]
[1755016787457,0.2065302,119650.0,119640.0,0.70925465]
[1755016787861,0.2065302,119650.0,119640.0,0.2020572]
[1755016788167,0.2025372,119640.0,119630.0,0.2736297]
[1755016788368,1.0358972,119640.0,119630.0,0.87710715]
[1755016789166,1.0368972,119640.0,119630.0,0.87710715]
[1755016789363,1.0378972,119640.0,119630.0,0.87710715]
[1755016789569,1.0150771,119640.0,119630.0,0.87710715]
[1755016790166,1.0150771,119640.0,119630.0,0.3699097]
[1755016790764,1.0150771,119640.0,119630.0,0.87710715]
[1755016790965,1.0378971,119640.0,119630.0,0.3699097]
[1755016791157,1.0378971,119640.0,119630.0,0.87710715]
[1755016791562,1.0378971,119640.0,119630.0,0.3699097]
[1755016791765,1.0378971,119640.0,119630.0,0.87710715]
[1755016792466,1.0378971,119640.0,119630.0,0.79352505]
[1755016792768,1.0378971,119640.0,119630.0,0.2863276]
[1755016792962,1.0378971,119640.0,119630.0,0.2027481]
[1755016793363,1.0378971,119640.0,119630.0,0.70994555]
[1755016793669,1.0378971,119640.0,119630.0,0.2027481]
[1755016793868,1.0378971,119640.0,119630.0,0.70994555]
[1755016794073,1.0378971,119640.0,119630.0,0.2027481]
[1755016794465,1.0378971,119640.0,119630.0,0.70994555]
[1755016794970,1.0378971,119640.0,119630.0,0.2027481]
[1755016795367,1.0378971,119640.0,119630.0,0.70994555]
[1755016795567,0.95432,119640.0,119630.0,0.70994555]
[1755016796385,1.0378971,119640.0,119630.0,0.2027481]
[1755016796582,0.95432,119640.0,119630.0,0.70994555]
[1755016797083,1.0378971,119640.0,119630.0,0.70994555]
[1755016797484,0.95432,119640.0,119630.0,0.70994555]
[1755016798180,0.83428,119640.0,119630.0,0.70994555]
[1755016798387,0.83404,119640.0,119630.0,1.217143]
[1755016798686,0.002,119640.0,119630.0,2.049263]
[1755016801782,0.002,119640.0,119630.0,2.216439]
[1755016801982,0.01873027,119650.0,119640.0,0.2027471]
[1755016802285,0.08019,119670.0,119660.0,0.1063232]
[1755016802481,0.09614,119670.0,119660.0,0.70993065]
[1755016802678,0.02281,119670.0,119660.0,0.72691628]
[1755016802883,1.18470498,119680.0,119670.0,0.2010462]
[1755016803191,1.18470498,119680.0,119670.0,0.70824365]
[1755016803690,1.18470498,119680.0,119670.0,0.2010462]
[1755016803991,1.18470498,119680.0,119670.0,0.70824365]
[1755016804392,1.10115358,119680.0,119670.0,0.70824365]
[1755016805479,0.14998288,119680.0,119670.0,0.70824365]
[1755016805684,0.23853208,119680.0,119670.0,0.70824365]
[1755016805888,0.07235288,119680.0,119670.0,0.70824365]
[1755016806079,0.07635288,119680.0,119670.0,0.70824365]
[1755016806285,0.07635288,119680.0,119670.0,1.2154411]
[1755016806587,0.05393358,119680.0,119670.0,1.2154411]
[1755016806784,0.01888007,119700.0,119690.0,0.2010322]
[1755016806982,0.08513247,119700.0,119690.0,0.70822965]
[1755016807184,0.01888007,119700.0,119690.0,0.70822965]
[1755016808286,0.005,119700.0,119690.0,0.70822965]
[1755016808485,0.008,119700.0,119690.0,0.70822965]
[1755016808892,0.003,119700.0,119690.0,0.70822965]
[1755016809189,0.004,119700.0,119690.0,0.70822965]
[1755016810288,1.18998,119730.0,119710.0,0.3806491]
[1755016810491,2.03134,119730.0,119720.0,0.70820885]
[1755016810993,2.09953983,119730.0,119720.0,0.70820885]
[1755016811192,1.27197983,119730.0,119720.0,0.70820885]
[1755016811388,2.10289983,119730.0,119720.0,0.70820885]
[1755016811696,2.21512423,119730.0,119720.0,0.70820885]
[1755016811992,2.10389983,119730.0,119720.0,0.2010114]
[1755016812294,2.21476423,119730.0,119720.0,0.70820885]
[1755016812688,1.38820423,119730.0,119720.0,0.70820885]
[1755016812885,2.21464423,119730.0,119720.0,0.70820885]
[1755016813086,2.21428423,119730.0,119720.0,0.70820885]
[1755016813494,1.38820423,119730.0,119720.0,0.70820885]
[1755016813797,2.21424423,119730.0,119720.0,0.1076014]
[1755016814187,1.38820423,119730.0,119720.0,0.1076014]
[1755016814387,2.21420423,119730.0,119720.0,0.1076014]
[1755016814895,2.72140168,119730.0,119720.0,0.0835214]
[1755016815094,0.2036613,119720.0,119710.0,0.2505807]
[1755016815485,0.2036613,119720.0,119710.0,0.1670523]
[1755016817298,0.2066613,119720.0,119710.0,0.1911323]
[1755016817999,0.2066613,119720.0,119710.0,0.2160323]
[1755016818294,0.2066613,119720.0,119710.0,0.1911323]
[1755016818492,0.2066613,119720.0,119710.0,0.0835239]
[1755016818687,0.2036683,119710.0,119700.0,0.3509663]
[1755016818894,1.0278683,119710.0,119700.0,0.3509663]
[1755016819091,1.0278683,119710.0,119700.0,0.3750463]
[1755016819797,0.9077283,119710.0,119700.0,0.3509663]
[1755016820701,0.9097283,119710.0,119700.0,0.3509663]
[1755016821497,0.9107283,119710.0,119700.0,0.3509663]
[1755016822101,0.9107283,119710.0,119700.0,0.85816375]
[1755016822399,1.41792575,119710.0,119700.0,0.0835316]
[1755016822604,1.41792575,119710.0,119690.0,0.1670815]
[1755016822605,0.0835352,119700.0,119690.0,0.1670815]
[1755016822799,0.0835422,119690.0,119680.0,0.77466828]
[1755016823104,1.41429965,119690.0,119680.0,0.10037983]
[1755016823294,1.41429965,119690.0,119680.0,0.01683063]
[1755016823602,0.9071022,119690.0,119680.0,0.10037983]
[1755016825206,0.9071022,119690.0,119680.0,0.10237983]
[1755016826197,1.41429965,119690.0,119680.0,0.10237983]
[1755016827101,1.41429965,119690.0,119680.0,0.002]
[1755016827403,1.58140365,119690.0,119680.0,0.002]
[1755016828106,1.58340365,119690.0,119680.0,0.002]
[1755016828899,0.0835492,119680.0,119670.0,0.1671112]
[1755016829098,0.0835492,119680.0,119670.0,0.0835556]
[1755016829304,0.0835492,119680.0,119670.0,0.59075305]
[1755016829812,0.09194528,119680.0,119670.0,0.0835556]
[1755016830410,0.09194528,119680.0,119670.0,0.59075305]
[1755016830710,0.09294528,119680.0,119670.0,0.0835556]
[1755016830904,0.09294528,119680.0,119670.0,0.0855556]
[1755016831408,0.09194528,119680.0,119670.0,0.0855556]
[1755016834404,0.09194528,119680.0,119670.0,0.59275305]
[1755016835704,0.09194528,119680.0,119670.0,0.0855556]
[1755016840817,0.09194528,119680.0,119670.0,0.59275305]
[1755016842011,1.0683172,119690.0,119680.0,0.0835492]
[1755016842204,0.25900058,119700.0,119680.0,1.348587]
[1755016842411,0.99309928,119700.0,119690.0,0.0835422]
[1755016842612,0.99309928,119700.0,119690.0,0.59073965]
[1755016842812,0.99309928,119700.0,119690.0,0.0835422]
[1755016843012,0.99309928,119700.0,119690.0,0.59073965]
[1755016843915,0.99409928,119700.0,119690.0,0.59073965]
[1755016844319,0.99609928,119700.0,119690.0,0.59073965]
[1755016844519,0.003,119700.0,119690.0,0.59073965]
[1755016844720,0.82172,119700.0,119690.0,0.59073965]
[1755016845021,0.9042552,119700.0,119690.0,0.59073965]
[1755016845212,0.9032552,119700.0,119690.0,0.59173965]
[1755016847922,0.81972,119700.0,119690.0,0.59173965]
[1755016848124,0.001,119700.0,119690.0,0.59173965]
[1755016849326,0.001,119700.0,119690.0,0.80882765]
[1755016850325,0.08725095,119730.0,119690.0,0.72528545]
[1755016850619,0.88437983,119730.0,119720.0,1.0979162]
[1755016850824,0.06829983,119730.0,119720.0,0.59071875]
[1755016851212,0.06829983,119730.0,119720.0,1.0979162]
[1755016851415,0.07229983,119730.0,119720.0,1.0979162]
[1755016851818,0.07529983,119730.0,119720.0,1.0979162]
[1755016852334,0.16724077,119730.0,119720.0,0.59071875]
[1755016852623,0.09904094,119730.0,119720.0,0.59071875]
[1755016852924,0.09504094,119730.0,119720.0,0.0835213]
[1755016853220,0.09804094,119730.0,119720.0,0.59071875]
[1755016854020,0.09804094,119730.0,119720.0,0.0835213]
[1755016854331,0.0896143,119730.0,119720.0,0.59071875]
[1755016855119,0.15568978,119730.0,119720.0,0.59071875]
[1755016855425,0.07217548,119730.0,119720.0,0.59071875]
[1755016855626,0.15568978,119730.0,119720.0,0.59071875]
[1755016856623,0.07217548,119730.0,119720.0,0.59071875]
[1755016859027,0.88693548,119730.0,119720.0,0.59071875]
[1755016859227,0.88693548,119730.0,119720.0,0.0835213]
[1755016859426,0.07217548,119730.0,119720.0,0.59071875]
[1755016861024,0.97016978,119730.0,119720.0,0.59071875]
[1755016861330,0.15568978,119730.0,119720.0,0.59071875]
[1755016861530,0.97004978,119730.0,119720.0,0.0835213]
[1755016862523,0.0835213,119720.0,119710.0,0.3341029]
[1755016862726,0.0835213,119720.0,119710.0,0.84130035]
[1755016863028,0.0835213,119720.0,119710.0,0.2505765]
[1755016863421,0.0835213,119720.0,119710.0,0.75777395]
[1755016863627,0.0865213,119720.0,119710.0,0.75777395]
[1755016864228,0.0885213,119720.0,119710.0,0.75777395]
[1755016864429,0.81836,119720.0,119710.0,0.75777395]
[1755016864627,0.005,119720.0,119710.0,1.2649714]
[1755016864831,0.005,119720.0,119710.0,0.75777395]
[1755016865825,0.06617548,119730.0,119720.0,0.0835213]
[1755016866032,0.06617548,119730.0,119720.0,1.0979162]
[1755016866535,0.06617548,119730.0,119720.0,0.59071875]
[1755016866830,0.06917548,119730.0,119720.0,0.59071875]
[1755016867035,0.07217548,119730.0,119720.0,0.59071875]
[1755016867339,0.07217548,119730.0,119720.0,1.0979162]
[1755016868128,0.02217548,119730.0,119720.0,1.0979162]
[1755016868332,0.0834946,119760.0,119750.0,0.0835004]
[1755016868531,0.09188347,119760.0,119750.0,0.59069785]
[1755016868732,0.0834946,119760.0,119750.0,0.59069785]
[1755016868927,2.2179905,119770.0,119750.0,0.59069785]
[1755016868928,1.4060705,119770.0,119750.0,0.84119445]
[1755016869135,2.2178705,119770.0,119760.0,0.59069085]
[1755016869336,2.22635016,119770.0,119760.0,0.59069085]
[1755016869538,2.22635016,119770.0,119760.0,0.58869085]
[1755016870439,2.22635016,119770.0,119760.0,0.58369085]
[1755016870440,2.2178705,119770.0,119760.0,0.58369085]
[1755016870631,1.4060705,119770.0,119760.0,0.58369085]
[1755016870833,1.38774984,119770.0,119760.0,0.58369085]
[1755016871033,2.19922984,119770.0,119760.0,0.58369085]
[1755016871241,1.04962984,119770.0,119760.0,0.58369085]
[1755016873139,1.04362984,119770.0,119760.0,0.58369085]
[1755016874139,1.04362984,119770.0,119760.0,0.59069085]
[1755016875136,1.04362984,119770.0,119760.0,0.50719745]
[1755016875330,1.04362984,119770.0,119750.0,0.2504966]
[1755016875331,1.21061664,119770.0,119750.0,0.2504966]
[1755016875536,1.21061664,119770.0,119730.0,0.18391547]
[1755016875537,0.0835003,119750.0,119740.0,0.75771245]
[1755016875837,0.8948603,119750.0,119740.0,0.67420675]
[1755016876033,0.0835073,119740.0,119730.0,0.35093887]
[1755016876241,0.0835073,119740.0,119730.0,0.85813632]
[1755016876537,0.0835073,119740.0,119730.0,0.69111292]
[1755016876744,0.0835143,119730.0,119720.0,0.84127905]
[1755016876944,0.8948343,119730.0,119720.0,0.84127905]
[1755016877344,0.90335489,119730.0,119720.0,0.84127905]
[1755016878238,0.90335489,119730.0,119720.0,0.67423825]
[1755016878546,0.90335489,119730.0,119720.0,0.1670408]
[1755016878840,0.92708489,119730.0,119720.0,0.59371785]
[1755016879142,0.92708489,119730.0,119720.0,0.003]
[1755016879442,0.92708489,119730.0,119720.0,0.011]
[1755016879844,0.92708489,119730.0,119720.0,0.0945213]
[1755016881447,0.92708489,119730.0,119720.0,0.60171875]
[1755016881641,0.95088346,119730.0,119720.0,0.60171875]
[1755016881944,0.92708489,119730.0,119720.0,0.60171875]
[1755016882145,0.95084074,119730.0,119720.0,0.60171875]
[1755016882351,0.95084085,119730.0,119720.0,0.60171875]
[1755016882549,0.92708489,119730.0,119720.0,0.60171875]
[1755016884248,0.95084251,119730.0,119720.0,0.60171875]
[1755016884548,0.92708489,119730.0,119720.0,0.60171875]
[1755016884747,0.92708489,119730.0,119720.0,0.0945213]
[1755016884946,0.95084308,119730.0,119720.0,0.60171875]
[1755016885349,1.45804053,119730.0,119720.0,0.011]
[1755016885542,1.45804053,119730.0,119720.0,0.0945213]
[1755016885741,0.95084308,119730.0,119720.0,0.0945213]
[1755016886143,0.95084308,119730.0,119720.0,0.011]
[1755016886450,1.01745298,119730.0,119720.0,0.011]
[1755016886752,1.01745298,119730.0,119720.0,0.0945213]
[1755016886946,1.01745298,119730.0,119720.0,0.0865213]
[1755016887243,1.01745298,119730.0,119720.0,0.0915213]
[1755016887449,1.01745298,119730.0,119720.0,0.005]
[1755016887649,1.01745298,119730.0,119720.0,0.006]
[1755016887849,1.01745298,119730.0,119720.0,0.0895213]
[1755016889250,1.01745298,119730.0,119720.0,0.59671875]
[1755016889551,1.017453,119730.0,119720.0,0.59671875]
[1755016890347,1.52465045,119730.0,119720.0,0.006]
[1755016891150,0.0835282,119710.0,119700.0,0.75779725]
[1755016891344,0.9195782,119710.0,119700.0,0.75779725]
[1755016892151,0.9360982,119710.0,119700.0,0.75779725]
[1755016892346,0.9360982,119710.0,119700.0,0.77364725]
[1755016892650,0.9360982,119710.0,119700.0,0.2664498]
[1755016892857,1.0039219,119710.0,119700.0,0.77364725]
[1755016893257,1.0039219,119710.0,119700.0,0.77864725]
[1755016893558,1.0039219,119710.0,119700.0,0.78164725]
[1755016893757,1.0502819,119710.0,119700.0,0.85881725]
[1755016895953,1.0502819,119710.0,119700.0,0.3516198]
[1755016896161,1.0502819,119710.0,119700.0,0.0915353]
[1755016896363,1.0502819,119710.0,119700.0,0.008]
[1755016896565,1.55747935,119710.0,119700.0,0.008]
[1755016896862,0.1313422,119690.0,119680.0,0.32227744]
[1755016897061,1.0136722,119690.0,119680.0,0.82947489]
[1755016897262,1.0136722,119690.0,119680.0,0.85170489]
[1755016898362,1.0136722,119690.0,119680.0,0.86755489]
[1755016898564,1.0136722,119690.0,119680.0,0.89173489]
[1755016899465,1.0136722,119690.0,119680.0,0.38453744]
[1755016899666,1.0136722,119690.0,119680.0,0.89473489]
[1755016901272,1.0136722,119690.0,119680.0,0.89573489]
[1755016902166,1.0136722,119690.0,119680.0,0.87155489]
[1755016902963,1.0136722,119690.0,119680.0,0.89573489]
[1755016905275,1.0136722,119690.0,119680.0,0.87155489]
[1755016906873,1.0136722,119690.0,119680.0,0.89573489]
[1755016907479,1.0134722,119690.0,119680.0,0.38853744]
[1755016907974,1.0134722,119690.0,119680.0,0.89573489]
[1755016912079,1.0134722,119690.0,119680.0,0.38853744]
[1755016912279,1.0134722,119690.0,119680.0,0.89573489]
[1755016914877,0.9721022,119690.0,119680.0,0.85570489]
[1755016916373,0.9721022,119690.0,119680.0,0.34850744]
[1755016916574,0.9721022,119690.0,119680.0,0.85570489]
[1755016918982,0.88856,119690.0,119680.0,0.85570489]
[1755016919481,0.9721022,119690.0,119680.0,0.85570489]
[1755016920785,1.47929965,119690.0,119680.0,0.004]
[1755016920980,1.47929965,119690.0,119680.0,0.0875492]
[1755016921776,0.9721022,119690.0,119680.0,0.0875492]
[1755016924784,0.1611822,119690.0,119680.0,0.1661792]
[1755016924981,0.9713022,119690.0,119680.0,0.67337665]
[1755016926882,0.9713022,119690.0,119680.0,0.62666665]
[1755016927381,0.9713022,119690.0,119680.0,0.1194692]
[1755016927587,1.47849965,119690.0,119680.0,0.004]
[1755016927784,1.47849965,119690.0,119680.0,0.0875492]
[1755016929490,0.9713022,119690.0,119680.0,0.0875492]
[1755016930683,1.47849965,119690.0,119680.0,0.0875492]
[1755016930888,1.49727263,119690.0,119680.0,0.0875492]
[1755016935082,0.99007518,119690.0,119680.0,0.1661792]
[1755016937193,0.17999518,119690.0,119680.0,0.67337665]
[1755016937392,0.98959518,119690.0,119680.0,0.67337665]
[1755016938288,0.93601518,119690.0,119680.0,0.61919665]
[1755016938995,0.85247298,119690.0,119680.0,0.61919665]
[1755016939494,0.93601518,119690.0,119680.0,0.1119992]